{"text_format":"1","workbook":"xlsx","n_sheets":4,"sheets":["Produktionsanlæg","Distributionsanlæg","Fællesfunktionsanlæg","Drop downliste"],"not_rendered":{"charts":0,"images":0,"macros":1,"external_links":0,"defined_names":2,"comments":0,"pivot_tables":0},"unopened":[],"bounds":{"document_bytes":16777216,"sheet_cells":100000,"rows_first":2000,"rows_last":500,"rows_between":2000,"halvings":0,"cell_chars":16384,"cell_head_chars":4096},"cells_cut":0,"cells_raw":0,"read":"whole","date_system":"1900"}

{"sheet":"Produktionsanlæg","index":0,"n_rows":562,"n_cols":6,"rows_kept":562,"cut":false,"hidden":false,"merged":[[0,5,1,5],[0,0,1,0],[0,1,1,1],[0,2,1,2],[0,3,1,3],[0,4,1,4]]}
["Produktionsanlæg","Enhed","Standard-levetid","Samlet mængde per 31/12-2014","Samlet mængde per 31/12-2015","Bemærk-ninger"]
[]
["Renseanlæg 1",null,null,null,null,"Fårevejle"]
["Mindre renseanlæg"]
["Mindre renseanlæg < 5.000 PE uden mulighed for opdeling","PE",40,0,0]
["Renseanlæg >= 5.000 PE, Vandbehandling"]
["Indløb med riste, Konstruktioner","PE",60,26200,26200,"Fårevejle"]
["Indløb med riste, Mek/EL","PE",20,26200,26200]
["Indløb med riste, SRO","PE",10,26200,26200]
["Sand- og fedtfang, Kontruktioner","PE",60,26200,26200]
["Sand- og fedtfang, Mek/EL","PE",20,26200,26200]
["Sand- og fedtfang, SRO","PE",10,26200,26200]
["Forklaring, Konstruktioner","PE",60,0,0]
["Forklaring, Mek/EL","PE",20,0,0]
["Forklaring, SRO","PE",10,0,0]
["Beluftningstanke, Konstruktioner","PE",60,26200,26200]
["Beluftningstanke, Mek/EL","PE",20,26200,26200]
["Beluftningstanke, SRO","PE",10,26200,26200]
["Efterklaringstanke, Konstruktioner","PE",60,26200,26200]
["Efterklaringstanke, Mek/El","PE",20,26200,26200]
["Efterklaringstanke, SRO","PE",10,26200,26200]
["Efterbehandlingsanlæg (sandfilter), Konstruktioner","PE",60,26200,26200]
["Efterbehandlingsanlæg (sandfilter), Mek/EL","PE",20,26200,26200]
["Efterbehandlingsanlæg (sandfilter), SRO","PE",10,26200,26200]
["Renseanlæg >= 5.000 PE, Slambehandling"]
["Forafvanding, slam, Konstruktion","PE",60,0,0]
["Forafvanding, slam, Mek/EL","PE",20,0,0]
["Forafvanding, slam, SRO","PE",10,0,0]
["Rådnetanke, slam, Konstruktioner","PE",60,0,0]
["Rådnetanke, slam, Mek/EL","PE",20,0,0]
["Rådnetanke, slam, SRO","PE",10,0,0]
["Gasdisponering, Konstruktioner","PE",60,0,0]
["Gasdisponering, Mek/EL","PE",20,0,0]
["Gasdisponering, SRO","PE",10,0,0]
["Gasdisponering - elproduktionsanlæg, Konstruktioner","PE",60,0,0]
["Gasdisponering - elproduktionsanlæg, Mek/EL","PE",20,0,0]
["Gasdisponering - elproduktionsanlæg, SRO","PE",10,0,0]
["Slutafvanding, slam - lavteknologisk (slambede), Konstruktioner","PE",60,26200,26200]
["Slutafvanding, slam - lavteknologisk (slambede), Mek/EL","PE",20,26200,26200]
["Slutafvanding, slam - lavteknologisk (slambede), SRO","PE",10,26200,26200]
["Slutafvanding, slam - højteknologisk (centrifuger), Konstruktioner","PE",60,26200,26200]
["Slutafvanding, slam - højteknologisk (centrifuger), Mek/El","PE",20,26200,26200]
["Slutafvanding, slam - højteknologisk (centrifuger), SRO","PE",10,26200,26200]
["Renseanlæg >= 5.000 PE, Slamdisponering"]
["Slutdisponering, slam - lavteknologisk (slammineralisering), Konstruktioner","PE",60,26200,26200]
["Slutdisponering, slam - lavteknologisk (slammineralisering), Mek/EL","PE",20,26200,26200]
["Slutdisponering, slam - lavteknologisk (slammineralisering), SRO","PE",10,26200,26200]
["Slutdisponering, slam - højteknologisk (slamtørring), Konstruktioner","PE",60,0,0]
["Slutdisponering, slam - højteknologisk (slamtørring), Mek/EL","PE",20,0,0]
["Slutdisponering, slam - højteknologisk (slamtørring), SRO","PE",10,0,0]
["Slutdisponering, slam - højteknologisk (slamtørring og -forbrænding), Konstruktioner","PE",60,0,0]
["Slutdisponering, slam - højteknologisk (slamtørring og -forbrænding), Mek/EL","PE",20,0,0]
["Slutdisponering, slam - højteknologisk (slamtørring og -forbrænding), SRO","PE",10,0,0]
["Renseanlæg 2"]
["Mindre renseanlæg"]
["Mindre renseanlæg < 5.000 PE uden mulighed for opdeling","PE",40,0,0]
["Renseanlæg >= 5.000 PE, Vandbehandling"]
["Indløb med riste, Konstruktioner","PE",60,8900,8900,"Nykøbing Sj."]
["Indløb med riste, Mek/EL","PE",20,8900,8900]
["Indløb med riste, SRO","PE",10,8900,8900]
["Sand- og fedtfang, Kontruktioner","PE",60,8900,8900]
["Sand- og fedtfang, Mek/EL","PE",20,8900,8900]
["Sand- og fedtfang, SRO","PE",10,8900,8900]
["Forklaring, Konstruktioner","PE",60,8900,8900]
["Forklaring, Mek/EL","PE",20,8900,8900]
["Forklaring, SRO","PE",10,8900,8900]
["Beluftningstanke, Konstruktioner","PE",60,8900,8900]
["Beluftningstanke, Mek/EL","PE",20,8900,8900]
["Beluftningstanke, SRO","PE",10,8900,8900]
["Efterklaringstanke, Konstruktioner","PE",60,8900,8900]
["Efterklaringstanke, Mek/El","PE",20,8900,8900]
["Efterklaringstanke, SRO","PE",10,8900,8900]
["Efterbehandlingsanlæg (sandfilter), Konstruktioner","PE",60,0,0]
["Efterbehandlingsanlæg (sandfilter), Mek/EL","PE",20,0,0]
["Efterbehandlingsanlæg (sandfilter), SRO","PE",10,0,0]
["Renseanlæg >= 5.000 PE, Slambehandling",null,null,0,0]
["Forafvanding, slam, Konstruktion","PE",60,0,0]
["Forafvanding, slam, Mek/EL","PE",20,0,0]
["Forafvanding, slam, SRO","PE",10,0,0]
["Rådnetanke, slam, Konstruktioner","PE",60,8900,8900]
["Rådnetanke, slam, Mek/EL","PE",20,8900,8900]
["Rådnetanke, slam, SRO","PE",10,8900,8900]
["Gasdisponering, Konstruktioner","PE",60,8900,8900]
["Gasdisponering, Mek/EL","PE",20,8900,8900]
["Gasdisponering, SRO","PE",10,8900,8900]
["Gasdisponering - elproduktionsanlæg, Konstruktioner","PE",60,8900,8900]
["Gasdisponering - elproduktionsanlæg, Mek/EL","PE",20,8900,8900]
["Gasdisponering - elproduktionsanlæg, SRO","PE",10,8900,8900]
["Slutafvanding, slam - lavteknologisk (slambede), Konstruktioner","PE",60,0,0]
["Slutafvanding, slam - lavteknologisk (slambede), Mek/EL","PE",20,0,0]
["Slutafvanding, slam - lavteknologisk (slambede), SRO","PE",10,0,0]
["Slutafvanding, slam - højteknologisk (centrifuger), Konstruktioner","PE",60,8900,8900]
["Slutafvanding, slam - højteknologisk (centrifuger), Mek/El","PE",20,8900,8900]
["Slutafvanding, slam - højteknologisk (centrifuger), SRO","PE",10,8900,8900]
["Renseanlæg >= 5.000 PE, Slamdisponering"]
["Slutdisponering, slam - lavteknologisk (slammineralisering), Konstruktioner","PE",60,0,0]
["Slutdisponering, slam - lavteknologisk (slammineralisering), Mek/EL","PE",20,0,0]
["Slutdisponering, slam - lavteknologisk (slammineralisering), SRO","PE",10,0,0]
["Slutdisponering, slam - højteknologisk (slamtørring), Konstruktioner","PE",60,0,0]
["Slutdisponering, slam - højteknologisk (slamtørring), Mek/EL","PE",20,0,0]
["Slutdisponering, slam - højteknologisk (slamtørring), SRO","PE",10,0,0]
["Slutdisponering, slam - højteknologisk (slamtørring og -forbrænding), Konstruktioner","PE",60,0,0]
["Slutdisponering, slam - højteknologisk (slamtørring og -forbrænding), Mek/EL","PE",20,0,0]
["Slutdisponering, slam - højteknologisk (slamtørring og -forbrænding), SRO","PE",10,0,0]
["Renseanlæg 3"]
["Mindre renseanlæg"]
["Mindre renseanlæg < 5.000 PE uden mulighed for opdeling","PE",40,4500,4500,"Højby"]
["Renseanlæg >= 5.000 PE, Vandbehandling"]
["Indløb med riste, Konstruktioner","PE",60,0,0]
["Indløb med riste, Mek/EL","PE",20,0,0]
["Indløb med riste, SRO","PE",10,0,0]
["Sand- og fedtfang, Kontruktioner","PE",60,0,0]
["Sand- og fedtfang, Mek/EL","PE",20,0,0]
["Sand- og fedtfang, SRO","PE",10,0,0]
["Forklaring, Konstruktioner","PE",60,0,0]
["Forklaring, Mek/EL","PE",20,0,0]
["Forklaring, SRO","PE",10,0,0]
["Beluftningstanke, Konstruktioner","PE",60,0,0]
["Beluftningstanke, Mek/EL","PE",20,0,0]
["Beluftningstanke, SRO","PE",10,0,0]
["Efterklaringstanke, Konstruktioner","PE",60,0,0]
["Efterklaringstanke, Mek/El","PE",20,0,0]
["Efterklaringstanke, SRO","PE",10,0,0]
["Efterbehandlingsanlæg (sandfilter), Konstruktioner","PE",60,0,0]
["Efterbehandlingsanlæg (sandfilter), Mek/EL","PE",20,0,0]
["Efterbehandlingsanlæg (sandfilter), SRO","PE",10,0,0]
["Renseanlæg >= 5.000 PE, Slambehandling"]
["Forafvanding, slam, Konstruktion","PE",60,0,0]
["Forafvanding, slam, Mek/EL","PE",20,0,0]
["Forafvanding, slam, SRO","PE",10,0,0]
["Rådnetanke, slam, Konstruktioner","PE",60,0,0]
["Rådnetanke, slam, Mek/EL","PE",20,0,0]
["Rådnetanke, slam, SRO","PE",10,0,0]
["Gasdisponering, Konstruktioner","PE",60,0,0]
["Gasdisponering, Mek/EL","PE",20,0,0]
["Gasdisponering, SRO","PE",10,0,0]
["Gasdisponering - elproduktionsanlæg, Konstruktioner","PE",60,0,0]
["Gasdisponering - elproduktionsanlæg, Mek/EL","PE",20,0,0]
["Gasdisponering - elproduktionsanlæg, SRO","PE",10,0,0]
["Slutafvanding, slam - lavteknologisk (slambede), Konstruktioner","PE",60,0,0]
["Slutafvanding, slam - lavteknologisk (slambede), Mek/EL","PE",20,0,0]
["Slutafvanding, slam - lavteknologisk (slambede), SRO","PE",10,0,0]
["Slutafvanding, slam - højteknologisk (centrifuger), Konstruktioner","PE",60,0,0]
["Slutafvanding, slam - højteknologisk (centrifuger), Mek/El","PE",20,0,0]
["Slutafvanding, slam - højteknologisk (centrifuger), SRO","PE",10,0,0]
["Renseanlæg >= 5.000 PE, Slamdisponering"]
["Slutdisponering, slam - lavteknologisk (slammineralisering), Konstruktioner","PE",60,0,0]
["Slutdisponering, slam - lavteknologisk (slammineralisering), Mek/EL","PE",20,0,0]
["Slutdisponering, slam - lavteknologisk (slammineralisering), SRO","PE",10,0,0]
["Slutdisponering, slam - højteknologisk (slamtørring), Konstruktioner","PE",60,0,0]
["Slutdisponering, slam - højteknologisk (slamtørring), Mek/EL","PE",20,0,0]
["Slutdisponering, slam - højteknologisk (slamtørring), SRO","PE",10,0,0]
["Slutdisponering, slam - højteknologisk (slamtørring og -forbrænding), Konstruktioner","PE",60,0,0]
["Slutdisponering, slam - højteknologisk (slamtørring og -forbrænding), Mek/EL","PE",20,0,0]
["Slutdisponering, slam - højteknologisk (slamtørring og -forbrænding), SRO","PE",10,0,0]
["Renseanlæg 4"]
["Mindre renseanlæg"]
["Mindre renseanlæg < 5.000 PE uden mulighed for opdeling","PE",40,4000,4000,"Vig"]
["Renseanlæg >= 5.000 PE, Vandbehandling"]
["Indløb med riste, Konstruktioner","PE",60,0,0]
["Indløb med riste, Mek/EL","PE",20,0,0]
["Indløb med riste, SRO","PE",10,0,0]
["Sand- og fedtfang, Kontruktioner","PE",60,0,0]
["Sand- og fedtfang, Mek/EL","PE",20,0,0]
["Sand- og fedtfang, SRO","PE",10,0,0]
["Forklaring, Konstruktioner","PE",60,0,0]
["Forklaring, Mek/EL","PE",20,0,0]
["Forklaring, SRO","PE",10,0,0]
["Beluftningstanke, Konstruktioner","PE",60,0,0]
["Beluftningstanke, Mek/EL","PE",20,0,0]
["Beluftningstanke, SRO","PE",10,0,0]
["Efterklaringstanke, Konstruktioner","PE",60,0,0]
["Efterklaringstanke, Mek/El","PE",20,0,0]
["Efterklaringstanke, SRO","PE",10,0,0]
["Efterbehandlingsanlæg (sandfilter), Konstruktioner","PE",60,0,0]
["Efterbehandlingsanlæg (sandfilter), Mek/EL","PE",20,0,0]
["Efterbehandlingsanlæg (sandfilter), SRO","PE",10,0,0]
["Renseanlæg >= 5.000 PE, Slambehandling"]
["Forafvanding, slam, Konstruktion","PE",60,0,0]
["Forafvanding, slam, Mek/EL","PE",20,0,0]
["Forafvanding, slam, SRO","PE",10,0,0]
["Rådnetanke, slam, Konstruktioner","PE",60,0,0]
["Rådnetanke, slam, Mek/EL","PE",20,0,0]
["Rådnetanke, slam, SRO","PE",10,0,0]
["Gasdisponering, Konstruktioner","PE",60,0,0]
["Gasdisponering, Mek/EL","PE",20,0,0]
["Gasdisponering, SRO","PE",10,0,0]
["Gasdisponering - elproduktionsanlæg, Konstruktioner","PE",60,0,0]
["Gasdisponering - elproduktionsanlæg, Mek/EL","PE",20,0,0]
["Gasdisponering - elproduktionsanlæg, SRO","PE",10,0,0]
["Slutafvanding, slam - lavteknologisk (slambede), Konstruktioner","PE",60,0,0]
["Slutafvanding, slam - lavteknologisk (slambede), Mek/EL","PE",20,0,0]
["Slutafvanding, slam - lavteknologisk (slambede), SRO","PE",10,0,0]
["Slutafvanding, slam - højteknologisk (centrifuger), Konstruktioner","PE",60,0,0]
["Slutafvanding, slam - højteknologisk (centrifuger), Mek/El","PE",20,0,0]
["Slutafvanding, slam - højteknologisk (centrifuger), SRO","PE",10,0,0]
["Renseanlæg >= 5.000 PE, Slamdisponering"]
["Slutdisponering, slam - lavteknologisk (slammineralisering), Konstruktioner","PE",60,0,0]
["Slutdisponering, slam - lavteknologisk (slammineralisering), Mek/EL","PE",20,0,0]
["Slutdisponering, slam - lavteknologisk (slammineralisering), SRO","PE",10,0,0]
["Slutdisponering, slam - højteknologisk (slamtørring), Konstruktioner","PE",60,0,0]
["Slutdisponering, slam - højteknologisk (slamtørring), Mek/EL","PE",20,0,0]
["Slutdisponering, slam - højteknologisk (slamtørring), SRO","PE",10,0,0]
["Slutdisponering, slam - højteknologisk (slamtørring og -forbrænding), Konstruktioner","PE",60,0,0]
["Slutdisponering, slam - højteknologisk (slamtørring og -forbrænding), Mek/EL","PE",20,0,0]
["Slutdisponering, slam - højteknologisk (slamtørring og -forbrænding), SRO","PE",10,0,0]
["Renseanlæg 5"]
["Mindre renseanlæg"]
["Mindre renseanlæg < 5.000 PE uden mulighed for opdeling","PE",40,2000,2000,"Rørvig"]
["Renseanlæg >= 5.000 PE, Vandbehandling"]
["Indløb med riste, Konstruktioner","PE",60,0,0]
["Indløb med riste, Mek/EL","PE",20,0,0]
["Indløb med riste, SRO","PE",10,0,0]
["Sand- og fedtfang, Kontruktioner","PE",60,0,0]
["Sand- og fedtfang, Mek/EL","PE",20,0,0]
["Sand- og fedtfang, SRO","PE",10,0,0]
["Forklaring, Konstruktioner","PE",60,0,0]
["Forklaring, Mek/EL","PE",20,0,0]
["Forklaring, SRO","PE",10,0,0]
["Beluftningstanke, Konstruktioner","PE",60,0,0]
["Beluftningstanke, Mek/EL","PE",20,0,0]
["Beluftningstanke, SRO","PE",10,0,0]
["Efterklaringstanke, Konstruktioner","PE",60,0,0]
["Efterklaringstanke, Mek/El","PE",20,0,0]
["Efterklaringstanke, SRO","PE",10,0,0]
["Efterbehandlingsanlæg (sandfilter), Konstruktioner","PE",60,0,0]
["Efterbehandlingsanlæg (sandfilter), Mek/EL","PE",20,0,0]
["Efterbehandlingsanlæg (sandfilter), SRO","PE",10,0,0]
["Renseanlæg >= 5.000 PE, Slambehandling"]
["Forafvanding, slam, Konstruktion","PE",60,0,0]
["Forafvanding, slam, Mek/EL","PE",20,0,0]
["Forafvanding, slam, SRO","PE",10,0,0]
["Rådnetanke, slam, Konstruktioner","PE",60,0,0]
["Rådnetanke, slam, Mek/EL","PE",20,0,0]
["Rådnetanke, slam, SRO","PE",10,0,0]
["Gasdisponering, Konstruktioner","PE",60,0,0]
["Gasdisponering, Mek/EL","PE",20,0,0]
["Gasdisponering, SRO","PE",10,0,0]
["Gasdisponering - elproduktionsanlæg, Konstruktioner","PE",60,0,0]
["Gasdisponering - elproduktionsanlæg, Mek/EL","PE",20,0,0]
["Gasdisponering - elproduktionsanlæg, SRO","PE",10,0,0]
["Slutafvanding, slam - lavteknologisk (slambede), Konstruktioner","PE",60,0,0]
["Slutafvanding, slam - lavteknologisk (slambede), Mek/EL","PE",20,0,0]
["Slutafvanding, slam - lavteknologisk (slambede), SRO","PE",10,0,0]
["Slutafvanding, slam - højteknologisk (centrifuger), Konstruktioner","PE",60,0,0]
["Slutafvanding, slam - højteknologisk (centrifuger), Mek/El","PE",20,0,0]
["Slutafvanding, slam - højteknologisk (centrifuger), SRO","PE",10,0,0]
["Renseanlæg >= 5.000 PE, Slamdisponering"]
["Slutdisponering, slam - lavteknologisk (slammineralisering), Konstruktioner","PE",60,0,0]
["Slutdisponering, slam - lavteknologisk (slammineralisering), Mek/EL","PE",20,0,0]
["Slutdisponering, slam - lavteknologisk (slammineralisering), SRO","PE",10,0,0]
["Slutdisponering, slam - højteknologisk (slamtørring), Konstruktioner","PE",60,0,0]
["Slutdisponering, slam - højteknologisk (slamtørring), Mek/EL","PE",20,0,0]
["Slutdisponering, slam - højteknologisk (slamtørring), SRO","PE",10,0,0]
["Slutdisponering, slam - højteknologisk (slamtørring og -forbrænding), Konstruktioner","PE",60,0,0]
["Slutdisponering, slam - højteknologisk (slamtørring og -forbrænding), Mek/EL","PE",20,0,0]
["Slutdisponering, slam - højteknologisk (slamtørring og -forbrænding), SRO","PE",10,0,0]
["Renseanlæg 6"]
["Mindre renseanlæg"]
["Mindre renseanlæg < 5.000 PE uden mulighed for opdeling","PE",40,1200,1200,"Abildøre"]
["Renseanlæg >= 5.000 PE, Vandbehandling"]
["Indløb med riste, Konstruktioner","PE",60,0,0]
["Indløb med riste, Mek/EL","PE",20,0,0]
["Indløb med riste, SRO","PE",10,0,0]
["Sand- og fedtfang, Kontruktioner","PE",60,0,0]
["Sand- og fedtfang, Mek/EL","PE",20,0,0]
["Sand- og fedtfang, SRO","PE",10,0,0]
["Forklaring, Konstruktioner","PE",60,0,0]
["Forklaring, Mek/EL","PE",20,0,0]
["Forklaring, SRO","PE",10,0,0]
["Beluftningstanke, Konstruktioner","PE",60,0,0]
["Beluftningstanke, Mek/EL","PE",20,0,0]
["Beluftningstanke, SRO","PE",10,0,0]
["Efterklaringstanke, Konstruktioner","PE",60,0,0]
["Efterklaringstanke, Mek/El","PE",20,0,0]
["Efterklaringstanke, SRO","PE",10,0,0]
["Efterbehandlingsanlæg (sandfilter), Konstruktioner","PE",60,0,0]
["Efterbehandlingsanlæg (sandfilter), Mek/EL","PE",20,0,0]
["Efterbehandlingsanlæg (sandfilter), SRO","PE",10,0,0]
["Renseanlæg >= 5.000 PE, Slambehandling"]
["Forafvanding, slam, Konstruktion","PE",60,0,0]
["Forafvanding, slam, Mek/EL","PE",20,0,0]
["Forafvanding, slam, SRO","PE",10,0,0]
["Rådnetanke, slam, Konstruktioner","PE",60,0,0]
["Rådnetanke, slam, Mek/EL","PE",20,0,0]
["Rådnetanke, slam, SRO","PE",10,0,0]
["Gasdisponering, Konstruktioner","PE",60,0,0]
["Gasdisponering, Mek/EL","PE",20,0,0]
["Gasdisponering, SRO","PE",10,0,0]
["Gasdisponering - elproduktionsanlæg, Konstruktioner","PE",60,0,0]
["Gasdisponering - elproduktionsanlæg, Mek/EL","PE",20,0,0]
["Gasdisponering - elproduktionsanlæg, SRO","PE",10,0,0]
["Slutafvanding, slam - lavteknologisk (slambede), Konstruktioner","PE",60,0,0]
["Slutafvanding, slam - lavteknologisk (slambede), Mek/EL","PE",20,0,0]
["Slutafvanding, slam - lavteknologisk (slambede), SRO","PE",10,0,0]
["Slutafvanding, slam - højteknologisk (centrifuger), Konstruktioner","PE",60,0,0]
["Slutafvanding, slam - højteknologisk (centrifuger), Mek/El","PE",20,0,0]
["Slutafvanding, slam - højteknologisk (centrifuger), SRO","PE",10,0,0]
["Renseanlæg >= 5.000 PE, Slamdisponering"]
["Slutdisponering, slam - lavteknologisk (slammineralisering), Konstruktioner","PE",60,0,0]
["Slutdisponering, slam - lavteknologisk (slammineralisering), Mek/EL","PE",20,0,0]
["Slutdisponering, slam - lavteknologisk (slammineralisering), SRO","PE",10,0,0]
["Slutdisponering, slam - højteknologisk (slamtørring), Konstruktioner","PE",60,0,0]
["Slutdisponering, slam - højteknologisk (slamtørring), Mek/EL","PE",20,0,0]
["Slutdisponering, slam - højteknologisk (slamtørring), SRO","PE",10,0,0]
["Slutdisponering, slam - højteknologisk (slamtørring og -forbrænding), Konstruktioner","PE",60,0,0]
["Slutdisponering, slam - højteknologisk (slamtørring og -forbrænding), Mek/EL","PE",20,0,0]
["Slutdisponering, slam - højteknologisk (slamtørring og -forbrænding), SRO","PE",10,0,0]
["Renseanlæg 7"]
["Mindre renseanlæg"]
["Mindre renseanlæg < 5.000 PE uden mulighed for opdeling","PE",40,1200,1200,"Strandhuse"]
["Renseanlæg >= 5.000 PE, Vandbehandling"]
["Indløb med riste, Konstruktioner","PE",60,0,0]
["Indløb med riste, Mek/EL","PE",20,0,0]
["Indløb med riste, SRO","PE",10,0,0]
["Sand- og fedtfang, Kontruktioner","PE",60,0,0]
["Sand- og fedtfang, Mek/EL","PE",20,0,0]
["Sand- og fedtfang, SRO","PE",10,0,0]
["Forklaring, Konstruktioner","PE",60,0,0]
["Forklaring, Mek/EL","PE",20,0,0]
["Forklaring, SRO","PE",10,0,0]
["Beluftningstanke, Konstruktioner","PE",60,0,0]
["Beluftningstanke, Mek/EL","PE",20,0,0]
["Beluftningstanke, SRO","PE",10,0,0]
["Efterklaringstanke, Konstruktioner","PE",60,0,0]
["Efterklaringstanke, Mek/El","PE",20,0,0]
["Efterklaringstanke, SRO","PE",10,0,0]
["Efterbehandlingsanlæg (sandfilter), Konstruktioner","PE",60,0,0]
["Efterbehandlingsanlæg (sandfilter), Mek/EL","PE",20,0,0]
["Efterbehandlingsanlæg (sandfilter), SRO","PE",10,0,0]
["Renseanlæg >= 5.000 PE, Slambehandling"]
["Forafvanding, slam, Konstruktion","PE",60,0,0]
["Forafvanding, slam, Mek/EL","PE",20,0,0]
["Forafvanding, slam, SRO","PE",10,0,0]
["Rådnetanke, slam, Konstruktioner","PE",60,0,0]
["Rådnetanke, slam, Mek/EL","PE",20,0,0]
["Rådnetanke, slam, SRO","PE",10,0,0]
["Gasdisponering, Konstruktioner","PE",60,0,0]
["Gasdisponering, Mek/EL","PE",20,0,0]
["Gasdisponering, SRO","PE",10,0,0]
["Gasdisponering - elproduktionsanlæg, Konstruktioner","PE",60,0,0]
["Gasdisponering - elproduktionsanlæg, Mek/EL","PE",20,0,0]
["Gasdisponering - elproduktionsanlæg, SRO","PE",10,0,0]
["Slutafvanding, slam - lavteknologisk (slambede), Konstruktioner","PE",60,0,0]
["Slutafvanding, slam - lavteknologisk (slambede), Mek/EL","PE",20,0,0]
["Slutafvanding, slam - lavteknologisk (slambede), SRO","PE",10,0,0]
["Slutafvanding, slam - højteknologisk (centrifuger), Konstruktioner","PE",60,0,0]
["Slutafvanding, slam - højteknologisk (centrifuger), Mek/El","PE",20,0,0]
["Slutafvanding, slam - højteknologisk (centrifuger), SRO","PE",10,0,0]
["Renseanlæg >= 5.000 PE, Slamdisponering"]
["Slutdisponering, slam - lavteknologisk (slammineralisering), Konstruktioner","PE",60,0,0]
["Slutdisponering, slam - lavteknologisk (slammineralisering), Mek/EL","PE",20,0,0]
["Slutdisponering, slam - lavteknologisk (slammineralisering), SRO","PE",10,0,0]
["Slutdisponering, slam - højteknologisk (slamtørring), Konstruktioner","PE",60,0,0]
["Slutdisponering, slam - højteknologisk (slamtørring), Mek/EL","PE",20,0,0]
["Slutdisponering, slam - højteknologisk (slamtørring), SRO","PE",10,0,0]
["Slutdisponering, slam - højteknologisk (slamtørring og -forbrænding), Konstruktioner","PE",60,0,0]
["Slutdisponering, slam - højteknologisk (slamtørring og -forbrænding), Mek/EL","PE",20,0,0]
["Slutdisponering, slam - højteknologisk (slamtørring og -forbrænding), SRO","PE",10,0,0]
["Renseanlæg 8"]
["Mindre renseanlæg"]
["Mindre renseanlæg < 5.000 PE uden mulighed for opdeling","PE",40,800,800,"Havnebyen"]
["Renseanlæg >= 5.000 PE, Vandbehandling"]
["Indløb med riste, Konstruktioner","PE",60,0,0]
["Indløb med riste, Mek/EL","PE",20,0,0]
["Indløb med riste, SRO","PE",10,0,0]
["Sand- og fedtfang, Kontruktioner","PE",60,0,0]
["Sand- og fedtfang, Mek/EL","PE",20,0,0]
["Sand- og fedtfang, SRO","PE",10,0,0]
["Forklaring, Konstruktioner","PE",60,0,0]
["Forklaring, Mek/EL","PE",20,0,0]
["Forklaring, SRO","PE",10,0,0]
["Beluftningstanke, Konstruktioner","PE",60,0,0]
["Beluftningstanke, Mek/EL","PE",20,0,0]
["Beluftningstanke, SRO","PE",10,0,0]
["Efterklaringstanke, Konstruktioner","PE",60,0,0]
["Efterklaringstanke, Mek/El","PE",20,0,0]
["Efterklaringstanke, SRO","PE",10,0,0]
["Efterbehandlingsanlæg (sandfilter), Konstruktioner","PE",60,0,0]
["Efterbehandlingsanlæg (sandfilter), Mek/EL","PE",20,0,0]
["Efterbehandlingsanlæg (sandfilter), SRO","PE",10,0,0]
["Renseanlæg >= 5.000 PE, Slambehandling"]
["Forafvanding, slam, Konstruktion","PE",60,0,0]
["Forafvanding, slam, Mek/EL","PE",20,0,0]
["Forafvanding, slam, SRO","PE",10,0,0]
["Rådnetanke, slam, Konstruktioner","PE",60,0,0]
["Rådnetanke, slam, Mek/EL","PE",20,0,0]
["Rådnetanke, slam, SRO","PE",10,0,0]
["Gasdisponering, Konstruktioner","PE",60,0,0]
["Gasdisponering, Mek/EL","PE",20,0,0]
["Gasdisponering, SRO","PE",10,0,0]
["Gasdisponering - elproduktionsanlæg, Konstruktioner","PE",60,0,0]
["Gasdisponering - elproduktionsanlæg, Mek/EL","PE",20,0,0]
["Gasdisponering - elproduktionsanlæg, SRO","PE",10,0,0]
["Slutafvanding, slam - lavteknologisk (slambede), Konstruktioner","PE",60,0,0]
["Slutafvanding, slam - lavteknologisk (slambede), Mek/EL","PE",20,0,0]
["Slutafvanding, slam - lavteknologisk (slambede), SRO","PE",10,0,0]
["Slutafvanding, slam - højteknologisk (centrifuger), Konstruktioner","PE",60,0,0]
["Slutafvanding, slam - højteknologisk (centrifuger), Mek/El","PE",20,0,0]
["Slutafvanding, slam - højteknologisk (centrifuger), SRO","PE",10,0,0]
["Renseanlæg >= 5.000 PE, Slamdisponering"]
["Slutdisponering, slam - lavteknologisk (slammineralisering), Konstruktioner","PE",60,0,0]
["Slutdisponering, slam - lavteknologisk (slammineralisering), Mek/EL","PE",20,0,0]
["Slutdisponering, slam - lavteknologisk (slammineralisering), SRO","PE",10,0,0]
["Slutdisponering, slam - højteknologisk (slamtørring), Konstruktioner","PE",60,0,0]
["Slutdisponering, slam - højteknologisk (slamtørring), Mek/EL","PE",20,0,0]
["Slutdisponering, slam - højteknologisk (slamtørring), SRO","PE",10,0,0]
["Slutdisponering, slam - højteknologisk (slamtørring og -forbrænding), Konstruktioner","PE",60,0,0]
["Slutdisponering, slam - højteknologisk (slamtørring og -forbrænding), Mek/EL","PE",20,0,0]
["Slutdisponering, slam - højteknologisk (slamtørring og -forbrænding), SRO","PE",10,0,0]
["Renseanlæg 9"]
["Mindre renseanlæg"]
["Mindre renseanlæg < 5.000 PE uden mulighed for opdeling","PE",40,300,300,"Lumsås"]
["Renseanlæg >= 5.000 PE, Vandbehandling"]
["Indløb med riste, Konstruktioner","PE",60,0,0]
["Indløb med riste, Mek/EL","PE",20,0,0]
["Indløb med riste, SRO","PE",10,0,0]
["Sand- og fedtfang, Kontruktioner","PE",60,0,0]
["Sand- og fedtfang, Mek/EL","PE",20,0,0]
["Sand- og fedtfang, SRO","PE",10,0,0]
["Forklaring, Konstruktioner","PE",60,0,0]
["Forklaring, Mek/EL","PE",20,0,0]
["Forklaring, SRO","PE",10,0,0]
["Beluftningstanke, Konstruktioner","PE",60,0,0]
["Beluftningstanke, Mek/EL","PE",20,0,0]
["Beluftningstanke, SRO","PE",10,0,0]
["Efterklaringstanke, Konstruktioner","PE",60,0,0]
["Efterklaringstanke, Mek/El","PE",20,0,0]
["Efterklaringstanke, SRO","PE",10,0,0]
["Efterbehandlingsanlæg (sandfilter), Konstruktioner","PE",60,0,0]
["Efterbehandlingsanlæg (sandfilter), Mek/EL","PE",20,0,0]
["Efterbehandlingsanlæg (sandfilter), SRO","PE",10,0,0]
["Renseanlæg >= 5.000 PE, Slambehandling"]
["Forafvanding, slam, Konstruktion","PE",60,0,0]
["Forafvanding, slam, Mek/EL","PE",20,0,0]
["Forafvanding, slam, SRO","PE",10,0,0]
["Rådnetanke, slam, Konstruktioner","PE",60,0,0]
["Rådnetanke, slam, Mek/EL","PE",20,0,0]
["Rådnetanke, slam, SRO","PE",10,0,0]
["Gasdisponering, Konstruktioner","PE",60,0,0]
["Gasdisponering, Mek/EL","PE",20,0,0]
["Gasdisponering, SRO","PE",10,0,0]
["Gasdisponering - elproduktionsanlæg, Konstruktioner","PE",60,0,0]
["Gasdisponering - elproduktionsanlæg, Mek/EL","PE",20,0,0]
["Gasdisponering - elproduktionsanlæg, SRO","PE",10,0,0]
["Slutafvanding, slam - lavteknologisk (slambede), Konstruktioner","PE",60,0,0]
["Slutafvanding, slam - lavteknologisk (slambede), Mek/EL","PE",20,0,0]
["Slutafvanding, slam - lavteknologisk (slambede), SRO","PE",10,0,0]
["Slutafvanding, slam - højteknologisk (centrifuger), Konstruktioner","PE",60,0,0]
["Slutafvanding, slam - højteknologisk (centrifuger), Mek/El","PE",20,0,0]
["Slutafvanding, slam - højteknologisk (centrifuger), SRO","PE",10,0,0]
["Renseanlæg >= 5.000 PE, Slamdisponering"]
["Slutdisponering, slam - lavteknologisk (slammineralisering), Konstruktioner","PE",60,0,0]
["Slutdisponering, slam - lavteknologisk (slammineralisering), Mek/EL","PE",20,0,0]
["Slutdisponering, slam - lavteknologisk (slammineralisering), SRO","PE",10,0,0]
["Slutdisponering, slam - højteknologisk (slamtørring), Konstruktioner","PE",60,0,0]
["Slutdisponering, slam - højteknologisk (slamtørring), Mek/EL","PE",20,0,0]
["Slutdisponering, slam - højteknologisk (slamtørring), SRO","PE",10,0,0]
["Slutdisponering, slam - højteknologisk (slamtørring og -forbrænding), Konstruktioner","PE",60,0,0]
["Slutdisponering, slam - højteknologisk (slamtørring og -forbrænding), Mek/EL","PE",20,0,0]
["Slutdisponering, slam - højteknologisk (slamtørring og -forbrænding), SRO","PE",10,0,0]
["Renseanlæg 10"]
["Mindre renseanlæg"]
["Mindre renseanlæg < 5.000 PE uden mulighed for opdeling","PE",40,100,100,"Nyrup"]
["Renseanlæg >= 5.000 PE, Vandbehandling"]
["Indløb med riste, Konstruktioner","PE",60,0,0]
["Indløb med riste, Mek/EL","PE",20,0,0]
["Indløb med riste, SRO","PE",10,0,0]
["Sand- og fedtfang, Kontruktioner","PE",60,0,0]
["Sand- og fedtfang, Mek/EL","PE",20,0,0]
["Sand- og fedtfang, SRO","PE",10,0,0]
["Forklaring, Konstruktioner","PE",60,0,0]
["Forklaring, Mek/EL","PE",20,0,0]
["Forklaring, SRO","PE",10,0,0]
["Beluftningstanke, Konstruktioner","PE",60,0,0]
["Beluftningstanke, Mek/EL","PE",20,0,0]
["Beluftningstanke, SRO","PE",10,0,0]
["Efterklaringstanke, Konstruktioner","PE",60,0,0]
["Efterklaringstanke, Mek/El","PE",20,0,0]
["Efterklaringstanke, SRO","PE",10,0,0]
["Efterbehandlingsanlæg (sandfilter), Konstruktioner","PE",60,0,0]
["Efterbehandlingsanlæg (sandfilter), Mek/EL","PE",20,0,0]
["Efterbehandlingsanlæg (sandfilter), SRO","PE",10,0,0]
["Renseanlæg >= 5.000 PE, Slambehandling"]
["Forafvanding, slam, Konstruktion","PE",60,0,0]
["Forafvanding, slam, Mek/EL","PE",20,0,0]
["Forafvanding, slam, SRO","PE",10,0,0]
["Rådnetanke, slam, Konstruktioner","PE",60,0,0]
["Rådnetanke, slam, Mek/EL","PE",20,0,0]
["Rådnetanke, slam, SRO","PE",10,0,0]
["Gasdisponering, Konstruktioner","PE",60,0,0]
["Gasdisponering, Mek/EL","PE",20,0,0]
["Gasdisponering, SRO","PE",10,0,0]
["Gasdisponering - elproduktionsanlæg, Konstruktioner","PE",60,0,0]
["Gasdisponering - elproduktionsanlæg, Mek/EL","PE",20,0,0]
["Gasdisponering - elproduktionsanlæg, SRO","PE",10,0,0]
["Slutafvanding, slam - lavteknologisk (slambede), Konstruktioner","PE",60,0,0]
["Slutafvanding, slam - lavteknologisk (slambede), Mek/EL","PE",20,0,0]
["Slutafvanding, slam - lavteknologisk (slambede), SRO","PE",10,0,0]
["Slutafvanding, slam - højteknologisk (centrifuger), Konstruktioner","PE",60,0,0]
["Slutafvanding, slam - højteknologisk (centrifuger), Mek/El","PE",20,0,0]
["Slutafvanding, slam - højteknologisk (centrifuger), SRO","PE",10,0,0]
["Renseanlæg >= 5.000 PE, Slamdisponering"]
["Slutdisponering, slam - lavteknologisk (slammineralisering), Konstruktioner","PE",60,0,0]
["Slutdisponering, slam - lavteknologisk (slammineralisering), Mek/EL","PE",20,0,0]
["Slutdisponering, slam - lavteknologisk (slammineralisering), SRO","PE",10,0,0]
["Slutdisponering, slam - højteknologisk (slamtørring), Konstruktioner","PE",60,0,0]
["Slutdisponering, slam - højteknologisk (slamtørring), Mek/EL","PE",20,0,0]
["Slutdisponering, slam - højteknologisk (slamtørring), SRO","PE",10,0,0]
["Slutdisponering, slam - højteknologisk (slamtørring og -forbrænding), Konstruktioner","PE",60,0,0]
["Slutdisponering, slam - højteknologisk (slamtørring og -forbrænding), Mek/EL","PE",20,0,0]
["Slutdisponering, slam - højteknologisk (slamtørring og -forbrænding), SRO","PE",10,0,0]
["Mindre renseanlæg"]
["Mindre renseanlæg < 5.000 PE uden mulighed for opdeling","PE",40]
["Renseanlæg >= 5.000 PE, Vandbehandling"]
["Indløb med riste, Konstruktioner","PE",60,0,0]
["Indløb med riste, Mek/EL","PE",20,0,0]
["Indløb med riste, SRO","PE",10,0,0]
["Sand- og fedtfang, Kontruktioner","PE",60,0,0]
["Sand- og fedtfang, Mek/EL","PE",20,0,0]
["Sand- og fedtfang, SRO","PE",10,0,0]
["Forklaring, Konstruktioner","PE",60,0,0]
["Forklaring, Mek/EL","PE",20,0,0]
["Forklaring, SRO","PE",10,0,0]
["Beluftningstanke, Konstruktioner","PE",60,0,0]
["Beluftningstanke, Mek/EL","PE",20,0,0]
["Beluftningstanke, SRO","PE",10,0,0]
["Efterklaringstanke, Konstruktioner","PE",60,0,0]
["Efterklaringstanke, Mek/El","PE",20,0,0]
["Efterklaringstanke, SRO","PE",10,0,0]
["Efterbehandlingsanlæg (sandfilter), Konstruktioner","PE",60,0,0]
["Efterbehandlingsanlæg (sandfilter), Mek/EL","PE",20,0,0]
["Efterbehandlingsanlæg (sandfilter), SRO","PE",10,0,0]
["Renseanlæg >= 5.000 PE, Slambehandling"]
["Forafvanding, slam, Konstruktion","PE",60,0,0]
["Forafvanding, slam, Mek/EL","PE",20,0,0]
["Forafvanding, slam, SRO","PE",10,0,0]
["Rådnetanke, slam, Konstruktioner","PE",60,0,0]
["Rådnetanke, slam, Mek/EL","PE",20,0,0]
["Rådnetanke, slam, SRO","PE",10,0,0]
["Gasdisponering, Konstruktioner","PE",60,0,0]
["Gasdisponering, Mek/EL","PE",20,0,0]
["Gasdisponering, SRO","PE",10,0,0]
["Gasdisponering - elproduktionsanlæg, Konstruktioner","PE",60,0,0]
["Gasdisponering - elproduktionsanlæg, Mek/EL","PE",20,0,0]
["Gasdisponering - elproduktionsanlæg, SRO","PE",10,0,0]
["Slutafvanding, slam - lavteknologisk (slambede), Konstruktioner","PE",60,0,0]
["Slutafvanding, slam - lavteknologisk (slambede), Mek/EL","PE",20,0,0]
["Slutafvanding, slam - lavteknologisk (slambede), SRO","PE",10,0,0]
["Slutafvanding, slam - højteknologisk (centrifuger), Konstruktioner","PE",60,0,0]
["Slutafvanding, slam - højteknologisk (centrifuger), Mek/El","PE",20,0,0]
["Slutafvanding, slam - højteknologisk (centrifuger), SRO","PE",10,0,0]
["Renseanlæg >= 5.000 PE, Slamdisponering"]
["Slutdisponering, slam - lavteknologisk (slammineralisering), Konstruktioner","PE",60,0,0]
["Slutdisponering, slam - lavteknologisk (slammineralisering), Mek/EL","PE",20,0,0]
["Slutdisponering, slam - lavteknologisk (slammineralisering), SRO","PE",10,0,0]
["Slutdisponering, slam - højteknologisk (slamtørring), Konstruktioner","PE",60,0,0]
["Slutdisponering, slam - højteknologisk (slamtørring), Mek/EL","PE",20,0,0]
["Slutdisponering, slam - højteknologisk (slamtørring), SRO","PE",10,0,0]
["Slutdisponering, slam - højteknologisk (slamtørring og -forbrænding), Konstruktioner","PE",60,0,0]
["Slutdisponering, slam - højteknologisk (slamtørring og -forbrænding), Mek/EL","PE",20,0,0]
["Slutdisponering, slam - højteknologisk (slamtørring og -forbrænding), SRO","PE",10,0,0]

{"sheet":"Distributionsanlæg","index":1,"n_rows":322,"n_cols":6,"rows_kept":322,"cut":false,"hidden":false,"merged":[[0,5,1,5],[0,0,1,0],[0,1,1,1],[0,2,1,2],[0,3,1,3],[0,4,1,4]]}
["Distributionsanlæg","Enhed","Standard-levetid","Samlet mængde per 31/12-2014","Samlet mængde per 31/12-2015","Bemærk-ninger"]
[]
["Ledningsnet - Land"]
["Ledningsnet ≤ Ø 200 mm ","meter",75,{"$f":"119965+48448+80238+10225","v":258876},260470]
["Ø 200 mm < Ledningsnet ≤ Ø 500 mm ","meter",75,{"$f":"53931+5232","v":59163},59442]
["Ø 500 mm < Ledningsnet ≤ Ø 800 mm","meter",75,{"$f":"6889+108","v":6997},5194]
["Ø 800 mm < Ledningsnet ≤ Ø 1000 mm","meter",75,557,771]
["Ø 1000 mm < Ledningsnet ≤ Ø 1200 mm","meter",75,34,34]
["Ø 1200 mm < Ledningsnet ≤ Ø 1600 mm","meter",75,51,53]
["Ledningsnet > Ø 1600 mm (rørbassiner og transportledninger)","meter",75,0,26]
["Strømpeforing ≤ Ø 200 mm","meter",50,300,{"$f":"300+581","v":881}]
["Strømpeforing Ø 200 mm < Ledningsnet ≤ Ø 500 mm","meter",50,28,28]
["Strømpeforing Ø 500 mm < Ledningsnet ≤ Ø 800 mm","meter",50,0,0]
["Strømpeforing Ø 800 mm < Ledningsnet ≤ Ø 1000 mm","meter",50,0,0]
["Strømpeforing Ø 1000 mm < Ledningsnet ≤ Ø 1200 mm","meter",50,0,0]
["Strømpeforing Ø 1200 mm < Ledningsnet ≤ Ø 1600 mm","meter",50,0,0]
["Ledningsnet - By"]
["Ledningsnet ≤ Ø 200 mm ","meter",75,{"$f":"140652+15000","v":155652},160444]
["Ø 200 mm < Ledningsnet ≤ Ø 500 mm ","meter",75,{"$f":"104613+15515","v":120128},122858]
["Ø 500 mm < Ledningsnet ≤ Ø 800 mm","meter",75,19293,21309]
["Ø 800 mm < Ledningsnet ≤ Ø 1000 mm","meter",75,5431,5643]
["Ø 1000 mm < Ledningsnet ≤ Ø 1200 mm","meter",75,1248,1181]
["Ø 1200 mm < Ledningsnet ≤ Ø 1600 mm","meter",75,378,378]
["Ledningsnet > Ø 1600 mm (rørbassiner og transportledninger)","meter",75,0,{"$f":"D24","v":0}]
["Strømpeforing ≤ Ø 200 mm","meter",50,4249,{"$f":"D25+225+188","v":4662}]
["Strømpeforing Ø 200 mm < Ledningsnet ≤ Ø 500 mm","meter",50,3472,{"$f":"D26+48","v":3520}]
["Strømpeforing Ø 500 mm < Ledningsnet ≤ Ø 800 mm","meter",50,1240,1240]
["Strømpeforing Ø 800 mm < Ledningsnet ≤ Ø 1000 mm","meter",50,320,320]
["Strømpeforing Ø 1000 mm < Ledningsnet ≤ Ø 1200 mm","meter",50,180,180]
["Strømpeforing Ø 1200 mm < Ledningsnet ≤ Ø 1600 mm","meter",50,0,{"$f":"D30","v":0}]
["Ledningsnet - City"]
["Ledningsnet ≤ Ø 200 mm ","meter",75,0]
["Ø 200 mm < Ledningsnet ≤ Ø 500 mm ","meter",75,0]
["Ø 500 mm < Ledningsnet ≤ Ø 800 mm","meter",75,0]
["Ø 800 mm < Ledningsnet ≤ Ø 1000 mm","meter",75,0]
["Ø 1000 mm < Ledningsnet ≤ Ø 1200 mm","meter",75,0]
["Ø 1200 mm < Ledningsnet ≤ Ø 1600 mm","meter",75,0]
["Ledningsnet > Ø 1600 mm (rørbassiner og transportledninger)","meter",75,0]
["Strømpeforing ≤ Ø 200 mm","meter",50,0]
["Strømpeforing Ø 200 mm < Ledningsnet ≤ Ø 500 mm","meter",50,0]
["Strømpeforing Ø 500 mm < Ledningsnet ≤ Ø 800 mm","meter",50,0]
["Strømpeforing Ø 800 mm < Ledningsnet ≤ Ø 1000 mm","meter",50,0]
["Strømpeforing Ø 1000 mm < Ledningsnet ≤ Ø 1200 mm","meter",50,0]
["Strømpeforing Ø 1200 mm < Ledningsnet ≤ Ø 1600 mm","meter",50,0]
["Ledningsnet - Indre city"]
["Ledningsnet ≤ Ø 200 mm ","meter",75,0]
["Ø 200 mm < Ledningsnet ≤ Ø 500 mm ","meter",75,0]
["Ø 500 mm < Ledningsnet ≤ Ø 800 mm","meter",75,0]
["Ø 800 mm < Ledningsnet ≤ Ø 1000 mm","meter",75,0]
["Ø 1000 mm < Ledningsnet ≤ Ø 1200 mm","meter",75,0]
["Ø 1200 mm < Ledningsnet ≤ Ø 1600 mm","meter",75,0]
["Ledningsnet > Ø 1600 mm (rørbassiner og transportledninger)","meter",75,0]
["Strømpeforing ≤ Ø 200 mm","meter",50,0]
["Strømpeforing Ø 200 mm < Ledningsnet ≤ Ø 500 mm","meter",50,0]
["Strømpeforing Ø 500 mm < Ledningsnet ≤ Ø 800 mm","meter",50,0]
["Strømpeforing Ø 800 mm < Ledningsnet ≤ Ø 1000 mm","meter",50,0]
["Strømpeforing Ø 1000 mm < Ledningsnet ≤ Ø 1200 mm","meter",50,0]
["Strømpeforing Ø 1200 mm < Ledningsnet ≤ Ø 1600 mm","meter",50,0]
["Brønde og stik, ledningsnet - Land"]
["Brønde","stk.",75,{"$f":"3059+1464","v":4523},4801]
["Stik","stk.",75,{"$f":"1645+2300","v":3945},{"$f":"D61+25","v":3970},"Bjergsø ny"]
["Brønde og stik, ledningsnet - By"]
["Brønde","stk.",75,7985,8206]
["Stik","stk.",75,{"$f":"19000-D61","v":15055},{"$f":"19100-E61","v":15130}]
["Brønde og stik, ledningsnet - City"]
["Brønde","stk.",75,0]
["Stik","stk.",75,0]
["Brønde og stik, ledningsnet - Indre city"]
["Brønde","stk.",75,0]
["Stik","stk.",75,0]
["Små pumpestationer inkl. SRO-anlæg - Land"]
["Tryksatte minipumpestationer (husstandssystemer)","stk.",30,{"$f":"216-1","v":215},234]
["Pumpestationer i brønde (< 6,25 m2), Konstruktioner","stk.",50,{"$f":"105-D76","v":88},93]
["Pumpestationer i brønde (< 6,25 m2), Mek/EL","stk.",20,{"$f":"177-D77","v":136},142]
["Pumpestationer i brønde (< 6,25 m2), SRO","stk.",10,{"$f":"98-D78","v":81},86]
["Pumpestationer m. overbygning (< 20 m2), Konstruktioner","stk.",50,17,17]
["Pumpestationer m. overbygning (< 20 m2), Mek/EL","stk.",20,41,41]
["Pumpestationer m. overbygning (< 20 m2), SRO","stk.",10,17,17]
["Pumpestationer i underjordiske bygværker (<50 m2), Konstruktioner","stk.",50,0]
["Pumpestationer i underjordiske bygværker (<50 m2), Mek/El","stk.",20,0]
["Pumpestationer i underjordiske bygværker (<50 m2), SRO","stk.",10,0]
["Små pumpestationer inkl. SRO-anlæg - By"]
["Tryksatte minipumpestationer (husstandssystemer)","stk.",30,1,1]
["Pumpestationer i brønde (< 6,25 m2), Konstruktioner","stk.",50,{"$f":"36-D87","v":25},27]
["Pumpestationer i brønde (< 6,25 m2), Mek/EL","stk.",20,{"$f":"65-D88","v":40},40]
["Pumpestationer i brønde (< 6,25 m2), SRO","stk.",10,{"$f":"25-D89","v":14},14]
["Pumpestationer m. overbygning (< 20 m2), Konstruktioner","stk.",50,11,11]
["Pumpestationer m. overbygning (< 20 m2), Mek/EL","stk.",20,25,23]
["Pumpestationer m. overbygning (< 20 m2), SRO","stk.",10,11,12]
["Pumpestationer i underjordiske bygværker (<50 m2), Konstruktioner","stk.",50,0]
["Pumpestationer i underjordiske bygværker (<50 m2), Mek/El","stk.",20,0]
["Pumpestationer i underjordiske bygværker (<50 m2), SRO","stk.",10,0]
["Små pumpestationer inkl. SRO-anlæg - City"]
["Tryksatte minipumpestationer (husstandssystemer)","stk.",30,0]
["Pumpestationer i brønde (< 6,25 m2), Konstruktioner","stk.",50,0]
["Pumpestationer i brønde (< 6,25 m2), Mek/EL","stk.",20,0]
["Pumpestationer i brønde (< 6,25 m2), SRO","stk.",10,0]
["Pumpestationer m. overbygning (< 20 m2), Konstruktioner","stk.",50,0]
["Pumpestationer m. overbygning (< 20 m2), Mek/EL","stk.",20,0]
["Pumpestationer m. overbygning (< 20 m2), SRO","stk.",10,0]
["Pumpestationer i underjordiske bygværker (<50 m2), Konstruktioner","stk.",50,0]
["Pumpestationer i underjordiske bygværker (<50 m2), Mek/El","stk.",20,0]
["Pumpestationer i underjordiske bygværker (<50 m2), SRO","stk.",10,0]
["Små pumpestationer inkl. SRO-anlæg - Indre city"]
["Tryksatte minipumpestationer (husstandssystemer)","stk.",30,0]
["Pumpestationer i brønde (< 6,25 m2), Konstruktioner","stk.",50,0]
["Pumpestationer i brønde (< 6,25 m2), Mek/EL","stk.",20,0]
["Pumpestationer i brønde (< 6,25 m2), SRO","stk.",10,0]
["Pumpestationer m. overbygning (< 20 m2), Konstruktioner","stk.",50,0]
["Pumpestationer m. overbygning (< 20 m2), Mek/EL","stk.",20,0]
["Pumpestationer m. overbygning (< 20 m2), SRO","stk.",10,0]
["Pumpestationer i underjordiske bygværker (<50 m2), Konstruktioner","stk.",50,0]
["Pumpestationer i underjordiske bygværker (<50 m2), Mek/El","stk.",20,0]
["Pumpestationer i underjordiske bygværker (<50 m2), SRO","stk.",10,0]
["Store pumpestationer: inkl. SRO-anlæg - Land"]
["Kælder","m2",75,0]
["Pumpeinstallation Miljøklasse A (100-300 l/s) - Mek/EL","stk.",20,0]
["Pumpeinstallation Miljøklasse A (100-300 l/s) - SRO","stk.",10,0]
["Pumpeinstallation Miljøklasse A (300-600 l/s) - Mek/EL","stk.",20,0]
["Pumpeinstallation Miljøklasse A (300-600 l/s) - SRO","stk.",10,0]
["Pumpeinstallation Miljøklasse A (600-1.000 l/s) - Mek/EL","stk.",20,0]
["Pumpeinstallation Miljøklasse A (600-1.000 l/s) - SRO","stk.",10,0]
["Pumpeinstallation Miljøklasse A (1.000-1.500 l/s) - Mek/EL","stk.",20,0]
["Pumpeinstallation Miljøklasse A (1.000-1.500 l/s) - SRO","stk.",10,0]
["Pumpeinstallation Miljøklasse B (100-300 l/s) - Mek/EL","stk.",20,0]
["Pumpeinstallation Miljøklasse B (100-300 l/s) - SRO","stk.",10,0]
["Pumpeinstallation Miljøklasse B (300-600 l/s) - Mek/EL","stk.",20,0]
["Pumpeinstallation Miljøklasse B (300-600 l/s) - SRO","stk.",10,0]
["Pumpeinstallation Miljøklasse B (600-1.000 l/s) - Mek/EL","stk.",20,0]
["Pumpeinstallation Miljøklasse B (600-1.000 l/s) - SRO","stk.",10,0]
["Pumpeinstallation Miljøklasse B (1.000-1.500 l/s) - Mek/EL","stk.",20,0]
["Pumpeinstallation Miljøklasse B (1.000-1.500 l/s) - SRO","stk.",10,0]
["Overbygning","m2",75,0]
["Store pumpestationer: inkl. SRO-anlæg - By"]
["Kælder","m2",75,0]
["Pumpeinstallation Miljøklasse A (100-300 l/s) - Mek/EL","stk.",20,0]
["Pumpeinstallation Miljøklasse A (100-300 l/s) - SRO","stk.",10,0]
["Pumpeinstallation Miljøklasse A (300-600 l/s) - Mek/EL","stk.",20,0]
["Pumpeinstallation Miljøklasse A (300-600 l/s) - SRO","stk.",10,0]
["Pumpeinstallation Miljøklasse A (600-1.000 l/s) - Mek/EL","stk.",20,0]
["Pumpeinstallation Miljøklasse A (600-1.000 l/s) - SRO","stk.",10,0]
["Pumpeinstallation Miljøklasse A (1.000-1.500 l/s) - Mek/EL","stk.",20,0]
["Pumpeinstallation Miljøklasse A (1.000-1.500 l/s) - SRO","stk.",10,0]
["Pumpeinstallation Miljøklasse B (100-300 l/s) - Mek/EL","stk.",20,0]
["Pumpeinstallation Miljøklasse B (100-300 l/s) - SRO","stk.",10,0]
["Pumpeinstallation Miljøklasse B (300-600 l/s) - Mek/EL","stk.",20,0]
["Pumpeinstallation Miljøklasse B (300-600 l/s) - SRO","stk.",10,0]
["Pumpeinstallation Miljøklasse B (600-1.000 l/s) - Mek/EL","stk.",20,0]
["Pumpeinstallation Miljøklasse B (600-1.000 l/s) - SRO","stk.",10,0]
["Pumpeinstallation Miljøklasse B (1.000-1.500 l/s) - Mek/EL","stk.",20,0]
["Pumpeinstallation Miljøklasse B (1.000-1.500 l/s) - SRO","stk.",10,0]
["Overbygning ","m2",75,0]
["Store pumpestationer: inkl. SRO-anlæg - City"]
["Kælder","m2",75,0]
["Pumpeinstallation Miljøklasse A (100-300 l/s) - Mek/EL","stk.",20,0]
["Pumpeinstallation Miljøklasse A (100-300 l/s) - SRO","stk.",10,0]
["Pumpeinstallation Miljøklasse A (300-600 l/s) - Mek/EL","stk.",20,0]
["Pumpeinstallation Miljøklasse A (300-600 l/s) - SRO","stk.",10,0]
["Pumpeinstallation Miljøklasse A (600-1.000 l/s) - Mek/EL","stk.",20,0]
["Pumpeinstallation Miljøklasse A (600-1.000 l/s) - SRO","stk.",10,0]
["Pumpeinstallation Miljøklasse A (1.000-1.500 l/s) - Mek/EL","stk.",20,0]
["Pumpeinstallation Miljøklasse A (1.000-1.500 l/s) - SRO","stk.",10,0]
["Pumpeinstallation Miljøklasse B (100-300 l/s) - Mek/EL","stk.",20,0]
["Pumpeinstallation Miljøklasse B (100-300 l/s) - SRO","stk.",10,0]
["Pumpeinstallation Miljøklasse B (300-600 l/s) - Mek/EL","stk.",20,0]
["Pumpeinstallation Miljøklasse B (300-600 l/s) - SRO","stk.",10,0]
["Pumpeinstallation Miljøklasse B (600-1.000 l/s) - Mek/EL","stk.",20,0]
["Pumpeinstallation Miljøklasse B (600-1.000 l/s) - SRO","stk.",10,0]
["Pumpeinstallation Miljøklasse B (1.000-1.500 l/s) - Mek/EL","stk.",20,0]
["Pumpeinstallation Miljøklasse B (1.000-1.500 l/s) - SRO","stk.",10,0]
["Overbygning ","m2",75,0]
["Store pumpestationer: inkl. SRO-anlæg - Indre city"]
["Kælder","m2",75,0]
["Pumpeinstallation Miljøklasse A (100-300 l/s) - Mek/EL","stk.",20,0]
["Pumpeinstallation Miljøklasse A (100-300 l/s) - SRO","stk.",10,0]
["Pumpeinstallation Miljøklasse A (300-600 l/s) - Mek/EL","stk.",20,0]
["Pumpeinstallation Miljøklasse A (300-600 l/s) - SRO","stk.",10,0]
["Pumpeinstallation Miljøklasse A (600-1.000 l/s) - Mek/EL","stk.",20,0]
["Pumpeinstallation Miljøklasse A (600-1.000 l/s) - SRO","stk.",10,0]
["Pumpeinstallation Miljøklasse A (1.000-1.500 l/s) - Mek/EL","stk.",20,0]
["Pumpeinstallation Miljøklasse A (1.000-1.500 l/s) - SRO","stk.",10,0]
["Pumpeinstallation Miljøklasse B (100-300 l/s) - Mek/EL","stk.",20,0]
["Pumpeinstallation Miljøklasse B (100-300 l/s) - SRO","stk.",10,0]
["Pumpeinstallation Miljøklasse B (300-600 l/s) - Mek/EL","stk.",20,0]
["Pumpeinstallation Miljøklasse B (300-600 l/s) - SRO","stk.",10,0]
["Pumpeinstallation Miljøklasse B (600-1.000 l/s) - Mek/EL","stk.",20,0]
["Pumpeinstallation Miljøklasse B (600-1.000 l/s) - SRO","stk.",10,0]
["Pumpeinstallation Miljøklasse B (1.000-1.500 l/s) - Mek/EL","stk.",20,0]
["Pumpeinstallation Miljøklasse B (1.000-1.500 l/s) - SRO","stk.",10,0]
["Overbygning","m2",75,0]
["Overløbsbygværker - Land"]
["Kælder (< 7 m2) ","stk.",75,{"$f":"46-22","v":24},24,"GIS"]
["Kælder (7 - 20 m2) ","m2",75,0,0]
["Kælder (20 - 30 m2)","m2",75,0,0]
["Installationer \"ingen eller faste riste\" (mindre end 7 m2)","stk.",20,0,0]
["Installationer \"mekaniske riste og SRO\" Miljøklasse A. (7-20 m2) - Mek/EL","stk.",20,0,0]
["Installationer \"mekaniske riste og SRO\" Miljøklasse A. (7-20 m2) - SRO","stk.",10,0,0]
["Installationer \"mekaniske riste og SRO\" Miljøklasse A. (20-30 m2) - Mek/EL","stk.",20,0,0]
["Installationer \"mekaniske riste og SRO\" Miljøklasse A. (20-30 m2) - SRO","stk.",10,0,0]
["Installationer \"mekaniske riste og SRO\" Miljøklasse B. (7-20 m2) - Mek/EL","stk.",20,0,0]
["Installationer \"mekaniske riste og SRO\" Miljøklasse B. (7-20 m2) - SRO","stk.",10,0,0]
["Installationer \"mekaniske riste og SRO\" Miljøklasse B. (20-30 m2) - Mek/EL","stk.",20,0,0]
["Installationer \"mekaniske riste og SRO\" Miljøklasse B. (20-30 m2) - SRO","stk.",10,0,0]
["Overbygning","stk.",75,0,0]
["Overløbsbygværker - By"]
["Kælder (< 7 m2) ","stk.",75,{"$f":"22-2","v":20},20,"Gis -3 stk."]
["Kælder (7 - 20 m2) ","m2",75,90,89,"3 stk."]
["Kælder (20 - 30 m2)","m2",75,0,1,"Nyk. Tromle"]
["Installationer \"ingen eller faste riste\" (mindre end 7 m2)","stk.",20,7,6]
["Installationer \"mekaniske riste og SRO\" Miljøklasse A. (7-20 m2) - Mek/EL","stk.",20,3,3]
["Installationer \"mekaniske riste og SRO\" Miljøklasse A. (7-20 m2) - SRO","stk.",10,3,3]
["Installationer \"mekaniske riste og SRO\" Miljøklasse A. (20-30 m2) - Mek/EL","stk.",20,0,1,"Nyk. Tromle"]
["Installationer \"mekaniske riste og SRO\" Miljøklasse A. (20-30 m2) - SRO","stk.",10,0,1,"Nyk. Tromle"]
["Installationer \"mekaniske riste og SRO\" Miljøklasse B. (7-20 m2) - Mek/EL","stk.",20,0,0]
["Installationer \"mekaniske riste og SRO\" Miljøklasse B. (7-20 m2) - SRO","stk.",10,0,0]
["Installationer \"mekaniske riste og SRO\" Miljøklasse B. (20-30 m2) - Mek/EL","stk.",20,0,0]
["Installationer \"mekaniske riste og SRO\" Miljøklasse B. (20-30 m2) - SRO","stk.",10,0,0]
["Overbygning","stk.",75,0,0]
["Overløbsbygværker - City"]
["Kælder (< 7 m2) ","stk.",75,0]
["Kælder (7 - 20 m2) ","m2",75,0]
["Kælder (20 - 30 m2)","m2",75,0]
["Installationer \"ingen eller faste riste\" (mindre end 7 m2)","stk.",20,0]
["Installationer \"mekaniske riste og SRO\" Miljøklasse A. (7-20 m2) - Mek/EL","stk.",20,0]
["Installationer \"mekaniske riste og SRO\" Miljøklasse A. (7-20 m2) - SRO","stk.",10,0]
["Installationer \"mekaniske riste og SRO\" Miljøklasse A. (20-30 m2) - Mek/EL","stk.",20,0]
["Installationer \"mekaniske riste og SRO\" Miljøklasse A. (20-30 m2) - SRO","stk.",10,0]
["Installationer \"mekaniske riste og SRO\" Miljøklasse B. (7-20 m2) - Mek/EL","stk.",20,0]
["Installationer \"mekaniske riste og SRO\" Miljøklasse B. (7-20 m2) - SRO","stk.",10,0]
["Installationer \"mekaniske riste og SRO\" Miljøklasse B. (20-30 m2) - Mek/EL","stk.",20,0]
["Installationer \"mekaniske riste og SRO\" Miljøklasse B. (20-30 m2) - SRO","stk.",10,0]
["Overbygning (efter beliggenhed) ","stk.",75,0]
["Overløbsbygværker - Indre city"]
["Kælder (< 7 m2) ","stk.",75,0]
["Kælder (7 - 20 m2) ","m2",75,0]
["Kælder (20 - 30 m2)","m2",75,0]
["Installationer \"ingen eller faste riste\" (mindre end 7 m2)","stk.",20,0]
["Installationer \"mekaniske riste og SRO\" Miljøklasse A. (7-20 m2) - Mek/EL","stk.",20,0]
["Installationer \"mekaniske riste og SRO\" Miljøklasse A. (7-20 m2) - SRO","stk.",10,0]
["Installationer \"mekaniske riste og SRO\" Miljøklasse A. (20-30 m2) - Mek/EL","stk.",20,0]
["Installationer \"mekaniske riste og SRO\" Miljøklasse A. (20-30 m2) - SRO","stk.",10,0]
["Installationer \"mekaniske riste og SRO\" Miljøklasse B. (7-20 m2) - Mek/EL","stk.",20,0]
["Installationer \"mekaniske riste og SRO\" Miljøklasse B. (7-20 m2) - SRO","stk.",10,0]
["Installationer \"mekaniske riste og SRO\" Miljøklasse B. (20-30 m2) - Mek/EL","stk.",20,0]
["Installationer \"mekaniske riste og SRO\" Miljøklasse B. (20-30 m2) - SRO","stk.",10,0]
["Overbygning","stk.",75,0]
["Forsinkelsesbassiner - Land"]
["Forsinkelsesbassiner, lukkede uden automatisk rensning og SRO Miljøklasse B (mindre end 1.000 m3)","m³",50,250,250,"Bråde"]
["Forsinkelsesbassiner, lukkede med automatisk rensning og SRO Miljøklasse A (500-1.000 m3) - Konstruktioner","m³",75,0,0]
["Forsinkelsesbassiner, lukkede med automatisk rensning og SRO Miljøklasse A (500-1.000 m3) - Mek/EL","m³",20,1535,{"$f":"D250","v":1535},"Vig Abildøre"]
["Forsinkelsesbassiner, lukkede med automatisk rensning og SRO Miljøklasse A (500-1.000 m3) - SRO ","m³",10,1535,{"$f":"D251","v":1535},"Vig Abildøre"]
["Forsinkelsesbassiner, lukkede med automatisk rensning og SRO Miljøklasse A (1.000-3.000 m3) - Konstruktioner","m³",75,3700,{"$f":"D252","v":3700},"Fårevejle"]
["Forsinkelsesbassiner, lukkede med automatisk rensning og SRO Miljøklasse A (1.000-3.000 m3) - Mek/EL","m³",20,3700,{"$f":"D253","v":3700},"Fårevejle"]
["Forsinkelsesbassiner, lukkede med automatisk rensning og SRO Miljøklasse A (1.000-3.000 m3) - SRO","m³",10,3700,{"$f":"D254","v":3700},"Fårevejle"]
["Forsinkelsesbassiner, lukkede med automatisk rensning og SRO Miljøklasse A (5.000-10.000 m3) - Konstruktionre","m³",75,0,0]
["Forsinkelsesbassiner, lukkede med automatisk rensning og SRO Miljøklasse A (5.000-10.000 m3) - Mek/EL","m³",20,0,0]
["Forsinkelsesbassiner, lukkede med automatisk rensning og SRO Miljøklasse A (5.000-10.000 m3) - SRO","m³",10,0,0]
["Forsinkelsesbassiner, lukkede med automatisk rensning og SRO Miljøklasse A (større end 10.000 m3) - Konstruktioner","m³",75,0,0]
["Forsinkelsesbassiner, lukkede med automatisk rensning og SRO Miljøklasse A (større end 10.000 m3) - Mek/EL","m³",20,0,0]
["Forsinkelsesbassiner, lukkede med automatisk rensning og SRO Miljøklasse A (større end 10.000 m3) - SRO","m³",10,0,0]
["Forsinkelsesbassiner - By"]
["Forsinkelsesbassiner, lukkede uden automatisk rensning og SRO Miljøklasse B (mindre end 1.000 m3)","m³",50,{"$f":"245+375","v":620},{"$f":"D262","v":620},"Kelstrup Højby"]
["Forsinkelsesbassiner, lukkede med automatisk rensning og SRO Miljøklasse A (500-1.000 m3) - Konstruktioner","m³",75,{"$f":"600+150","v":750},750,"Lyng rørvig"]
["Forsinkelsesbassiner, lukkede med automatisk rensning og SRO Miljøklasse A (500-1.000 m3) - Mek/EL","m³",20,{"$f":"600+150","v":750},750,"Lyng rørvig"]
["Forsinkelsesbassiner, lukkede med automatisk rensning og SRO Miljøklasse A (500-1.000 m3) - SRO ","m³",10,750,750,"Lyng rørvig"]
["Forsinkelsesbassiner, lukkede med automatisk rensning og SRO Miljøklasse A (1.000-3.000 m3) - Konstruktioner","m³",75,1000,1000,"Nykøbing"]
["Forsinkelsesbassiner, lukkede med automatisk rensning og SRO Miljøklasse A (1.000-3.000 m3) - Mek/EL","m³",20,1000,1000,"Nykøbing"]
["Forsinkelsesbassiner, lukkede med automatisk rensning og SRO Miljøklasse A (1.000-3.000 m3) - SRO","m³",10,1000,1000,"Nykøbing"]
["Forsinkelsesbassiner, lukkede med automatisk rensning og SRO Miljøklasse A (5.000-10.000 m3) - Konstruktionre","m³",75,0,0]
["Forsinkelsesbassiner, lukkede med automatisk rensning og SRO Miljøklasse A (5.000-10.000 m3) - Mek/EL","m³",20,0,0]
["Forsinkelsesbassiner, lukkede med automatisk rensning og SRO Miljøklasse A (5.000-10.000 m3) - SRO","m³",10,0,0]
["Forsinkelsesbassiner, lukkede med automatisk rensning og SRO Miljøklasse A (større end 10.000 m3) - Konstruktioner","m³",75,0,0]
["Forsinkelsesbassiner, lukkede med automatisk rensning og SRO Miljøklasse A (større end 10.000 m3) - Mek/EL","m³",20,0,0]
["Forsinkelsesbassiner, lukkede med automatisk rensning og SRO Miljøklasse A (større end 10.000 m3) - SRO","m³",10,0,0]
["Forsinkelsesbassiner - City"]
["Forsinkelsesbassiner, lukkede uden automatisk rensning og SRO Miljøklasse B (mindre end 1.000 m3)","m³",50,0]
["Forsinkelsesbassiner, lukkede med automatisk rensning og SRO Miljøklasse A (500-1.000 m3) - Konstruktioner","m³",75,0]
["Forsinkelsesbassiner, lukkede med automatisk rensning og SRO Miljøklasse A (500-1.000 m3) - Mek/EL","m³",20,0]
["Forsinkelsesbassiner, lukkede med automatisk rensning og SRO Miljøklasse A (500-1.000 m3) - SRO ","m³",10,0]
["Forsinkelsesbassiner, lukkede med automatisk rensning og SRO Miljøklasse A (1.000-3.000 m3) - Konstruktioner","m³",75,0]
["Forsinkelsesbassiner, lukkede med automatisk rensning og SRO Miljøklasse A (1.000-3.000 m3) - Mek/EL","m³",20,0]
["Forsinkelsesbassiner, lukkede med automatisk rensning og SRO Miljøklasse A (1.000-3.000 m3) - SRO","m³",10,0]
["Forsinkelsesbassiner, lukkede med automatisk rensning og SRO Miljøklasse A (5.000-10.000 m3) - Konstruktionre","m³",75,0]
["Forsinkelsesbassiner, lukkede med automatisk rensning og SRO Miljøklasse A (5.000-10.000 m3) - Mek/EL","m³",20,0]
["Forsinkelsesbassiner, lukkede med automatisk rensning og SRO Miljøklasse A (5.000-10.000 m3) - SRO","m³",10,0]
["Forsinkelsesbassiner, lukkede med automatisk rensning og SRO Miljøklasse A (større end 10.000 m3) - Konstruktioner","m³",75,0]
["Forsinkelsesbassiner, lukkede med automatisk rensning og SRO Miljøklasse A (større end 10.000 m3) - Mek/EL","m³",20,0]
["Forsinkelsesbassiner, lukkede med automatisk rensning og SRO Miljøklasse A (større end 10.000 m3) - SRO","m³",10,0]
["Forsinkelsesbassiner - Indre city"]
["Forsinkelsesbassiner, lukkede uden automatisk rensning og SRO Miljøklasse B (mindre end 1.000 m3)","m³",50,0]
["Forsinkelsesbassiner, lukkede med automatisk rensning og SRO Miljøklasse A (500-1.000 m3) - Konstruktioner","m³",75,0]
["Forsinkelsesbassiner, lukkede med automatisk rensning og SRO Miljøklasse A (500-1.000 m3) - Mek/EL","m³",20,0]
["Forsinkelsesbassiner, lukkede med automatisk rensning og SRO Miljøklasse A (500-1.000 m3) - SRO ","m³",10,0]
["Forsinkelsesbassiner, lukkede med automatisk rensning og SRO Miljøklasse A (1.000-3.000 m3) - Konstruktioner","m³",75,0]
["Forsinkelsesbassiner, lukkede med automatisk rensning og SRO Miljøklasse A (1.000-3.000 m3) - Mek/EL","m³",20,0]
["Forsinkelsesbassiner, lukkede med automatisk rensning og SRO Miljøklasse A (1.000-3.000 m3) - SRO","m³",10,0]
["Forsinkelsesbassiner, lukkede med automatisk rensning og SRO Miljøklasse A (5.000-10.000 m3) - Konstruktionre","m³",75,0]
["Forsinkelsesbassiner, lukkede med automatisk rensning og SRO Miljøklasse A (5.000-10.000 m3) - Mek/EL","m³",20,0]
["Forsinkelsesbassiner, lukkede med automatisk rensning og SRO Miljøklasse A (5.000-10.000 m3) - SRO","m³",10,0]
["Forsinkelsesbassiner, lukkede med automatisk rensning og SRO Miljøklasse A (større end 10.000 m3) - Konstruktioner","m³",75,0]
["Forsinkelsesbassiner, lukkede med automatisk rensning og SRO Miljøklasse A (større end 10.000 m3) - Mek/EL","m³",20,0]
["Forsinkelsesbassiner, lukkede med automatisk rensning og SRO Miljøklasse A (større end 10.000 m3) - SRO","m³",10,0]
["Sparebassin/laguner - Land"]
["Jordbassin Klasse B","m³",50,38404,41054]
["Jordbassin Klasse A","m³",50,0,0]
["Indløb-/udløbsarrangement","stk.",75,25,{"$f":"D306+1","v":26},"Gis"]
["Andre bygninger (tekniske installationer, målere mv.)","m2",75,22,{"$f":"D307","v":22},"Sandfang 22"]
["Sparebassin/laguner - By"]
["Jordbassin Klasse B","m³",50,14730,16230]
["Jordbassin Klasse A","m³",50,0,0]
["Indløb-/udløbsarrangement","stk.",75,24,{"$f":"D311+1","v":25},"Gis"]
["Andre bygninger (tekniske installationer, målere mv.)","m2",75,{"$f":"40-22","v":18},18,"Sandfang 18"]
["Sparebassin/laguner - City"]
["Jordbassin Klasse B","m³",50,0]
["Jordbassin Klasse A","m³",50,0]
["Indløb-/udløbsarrangement","stk.",75,0]
["Andre bygninger (tekniske installationer, målere mv.)","m2",75,0]
["Sparebassin/laguner  - Indre city"]
["Jordbassin Klasse B","m³",50,0]
["Jordbassin Klasse A","m³",50,0]
["Indløb-/udløbsarrangement","stk.",75,0]
["Andre bygninger (tekniske installationer, målere mv.)","m2",75,0]

{"sheet":"Fællesfunktionsanlæg","index":2,"n_rows":16,"n_cols":6,"rows_kept":16,"cut":false,"hidden":false,"merged":[[0,5,1,5],[0,0,1,0],[0,1,1,1],[0,2,1,2],[0,3,1,3],[0,4,1,4]]}
["Fællesfunktionsanlæg","Enhed","Standard-levetid","Samlet mængde per 31/12-2014","Samlet mængde per 31/12-2015","Bemærk-ninger"]
[]
[]
["Andre"]
["Administrationbygninger","m2",75,{"$f":"100+213+281","v":594},{"$f":"100+213+281","v":594}]
["Arbejdsplads og kontor","stk.",5,3,3]
["Køretøjer, personbil","stk.",5,9,9]
["Køretøjer, små lastvogne (< 3.500 kg.)","stk.",5,2,2]
["Køretøjer, store lastvogne (> 3.500 kg.)","stk.",5,0,0]
["Køretøjer, entreprenørmaskiner","stk.",5,0,0]
["Slamsugere","stk.",5,0,0]
["Værksteder, garager","m2",75,{"$f":"70+136+482","v":688},{"$f":"70+136+482","v":688}]
["Øvrige"]
["Solcelleanlæg","KWh",25,0]
["EDB, tablets og navigationsudstyr","stk.",5,0]
["Elektroniske kort","stk.",5,0]

{"sheet":"Drop downliste","index":3,"n_rows":13,"n_cols":11,"rows_kept":13,"cut":false,"hidden":true,"merged":[]}
[]
[null,"datakvalitet","Serviceselskab","Overheads","Infrastrukturomlægninger","Infrastruktur per år","år 1","år 2","år 3","år 4","år 5"]
[null,null,null,null,null,null,2010,2011,2012,2013,2014]
[null,1,"ja","Full-cost","ja",0.1]
[null,2,"nej","Direct-cost","nej",0.2]
[null,3,null,"Nøgletalsfordeling",null,0.3]
[null,null,null,"Activity based cost",null,0.4]
[null,null,null,"Andet",null,0.5]
[null,null,null,null,null,0.6]
[null,null,null,null,null,0.7]
[null,null,null,null,null,0.8]
[null,null,null,null,null,0.9]
[null,null,null,null,null,1]